fUST/lending_fUST_20251021
["ID","MTS","AMOUNT","RATE_DAILY","PERIOD"]
[391950448,1761025838990,-151.0,0.0002689,7]
[391950449,1761025838999,-151.0,0.0002689,7]
[391950450,1761025839009,-151.0,0.0002689,7]
[391950451,1761025839019,-213.152792,0.0002689,7]
[391950452,1761025839030,-151.0,0.0002689,7]
[391950453,1761025839041,-151.0,0.0002689,7]
[391950454,1761025839051,-151.0,0.0002689,7]
[391950455,1761025839061,-151.0,0.0002689,7]
[391950456,1761025839072,-151.0,0.0002689,7]
[391950457,1761025839083,-151.0,0.0002689,7]
[391950458,1761025839093,-151.0,0.0002689,7]
[391950459,1761025839103,-151.0,0.0002689,7]
[391950460,1761025839114,-151.0,0.0002689,7]
[391950461,1761025839124,-174.778041,0.0002689,7]
[391950462,1761025839135,-151.0,0.0002689,7]
[391950463,1761025839145,-151.0,0.0002689,7]
[391950464,1761025839155,-151.44966338,0.0002689,7]
[391950465,1761025839166,-533.439963,0.0002689,7]
[391950466,1761025839175,-533.439963,0.0002689,7]
[391950467,1761025839185,-533.439963,0.0002689,7]
[391950468,1761025839194,-533.439963,0.0002689,7]
[391950469,1761025839204,-533.439963,0.0002689,7]
[391950470,1761025839214,-533.439963,0.0002689,7]
[391950471,1761025839225,-533.439963,0.0002689,7]
[391950472,1761025839235,-533.439963,0.0002689,7]
[391950473,1761025839245,-151.0,0.0002689,7]
[391950474,1761025839254,-151.0,0.0002689,7]
[391950475,1761025839264,-151.0,0.0002689,7]
[391950476,1761025839277,-152.19683,0.0002689,7]
[391950477,1761025839287,-151.0,0.0002689,7]
[391950478,1761025839296,-151.0,0.0002689,7]
[391950479,1761025839306,-151.0,0.0002689,7]
[391950480,1761025839317,-151.0,0.0002689,7]
[391950481,1761025839327,-151.0,0.0002689,7]
[391950482,1761025839336,-151.754635,0.0002689,7]
[391950483,1761025839346,-55084.92103192,0.0002689,2]
[391950497,1761025840680,-151.0,0.0002689,7]
[391950498,1761025840690,-15915.07896808,0.0002689,2]
[391950499,1761025840700,-56993.5863387,0.0002689,2]
[391950500,1761025840737,-2698.748,0.0002689,2]
[391950513,1761025843592,-151.0,0.0002689,7]
[391950514,1761025843602,-151.0,0.0002689,7]
[391950515,1761025843612,-151.0,0.0002689,7]
[391950516,1761025843621,-90.95,0.0002689,2]
[391950517,1761025843758,-53829.312304,0.0002689,2]
[391950559,1761025846671,-3936.55,0.0002688,10]
[391950560,1761025846681,-1991.43171645,0.0002689,2]
[391950561,1761025848533,-253.7425319,0.0002689,2]
[391950569,1761025891875,150.0,0.00022029,2]
[391950570,1761025892294,153.47,0.00024032,2]
[391950571,1761025896391,150.0,0.00017966,30]
[391950572,1761025896808,150.0,0.00019599,30]
[391950573,1761025897370,150.0,0.00021233,30]
[391950574,1761025897782,150.0,0.00022866,30]
[391950577,1761025973332,150.0,0.00022023,2]
[391950578,1761025977696,150.0,0.00017622,30]
[391950579,1761025978122,150.0,0.00019224,30]
[391950580,1761025978565,150.0,0.00020826,30]
[391950581,1761025979015,150.0,0.00022428,30]
[391950582,1761026052124,150.0,0.00022033,2]
[391950583,1761026057071,150.0,0.00017819,30]
[391950584,1761026057592,150.0,0.00019439,30]
[391950585,1761026058186,150.0,0.00021059,30]
[391950586,1761026058706,150.0,0.00022679,30]
[391950587,1761026124063,509.0,0.00023,2]
[391950588,1761026133449,150.0,0.0002209,2]
[391950589,1761026137801,150.0,0.00014983,30]
[391950590,1761026138250,150.0,0.00016345,30]
[391950591,1761026139285,150.0,0.00017707,30]
[391950592,1761026139782,150.0,0.00019069,30]
[391950593,1761026140487,1770.6962122,0.00023,2]
[391950594,1761026140738,150.0,0.00020431,30]
[391950595,1761026141189,150.0,0.00021793,30]
[391950596,1761026173375,-150.0,0.00024026,2]
[391950597,1761026209915,150.0,0.00022087,2]
[391950598,1761026214637,150.0,0.00017699,30]
[391950599,1761026214756,150.0,0.00019308,30]
[391950600,1761026283060,150.0,0.00022096,2]
[391950601,1761026287115,150.0,0.000177,30]
[391950602,1761026357695,150.0,0.00022941,2]
[391950611,1761026435182,150.0,0.00021951,2]
[391950612,1761026435830,150.0,0.00023947,2]
[391950613,1761026507818,150.0,0.00022084,2]
[391950614,1761026514157,417.15472785,0.00024073,2]
[391950615,1761026518795,232.135762,0.0003013,120]
[391950616,1761026580064,150.0,0.00021969,2]
[391950617,1761026580976,150.0,0.00023966,2]
[391950618,1761026649924,150.0,0.00021964,2]
[391950619,1761026650434,150.0,0.00023961,2]
[391950620,1761026717787,150.0,0.0002285,2]
[391950659,1761026784746,150.0,0.00021969,2]
[391950660,1761026785199,150.0,0.00023966,2]
[391950669,1761027031705,-219.18029961,0.00024895,2]
[391950671,1761027031715,-300.7891603,0.00025783,2]
[391950673,1761027031724,-300.0,0.00026427,2]
[391950675,1761027031734,-1608.40486,0.00026428,2]
[391950725,1761027037670,-21309.01807847,0.00026428,2]
[391950726,1761027037680,-1186.14564104,0.00026774,2]
[391950727,1761027037690,-514.84070869,0.00026774,2]
[391950728,1761027037699,-791.7,0.0002678,3]
[391950729,1761027037708,-395.85,0.0002678,3]
[391950730,1761027037718,-395.85,0.0002678,3]
[391950731,1761027037728,-3280.46,0.0002678,10]
[391950732,1761027037737,-4071.36362178,0.0002678,2]
[391950733,1761027037746,-507.06377065,0.0002678,2]
[391950734,1761027037755,-214840.97028947,0.0002679,2]
[391950785,1761028090460,2879.97874736,0.00021,5]
[391950787,1761028113068,7843.03398816,0.00024,60]
[391950790,1761028120136,383.98619864,0.0002,2]
[391950841,1761028231890,-4375.52885942,0.00024142,2]
[391950898,1761028238192,-3607.06255421,0.00024142,2]
[391950899,1761028238202,-300.0,0.00024748,2]
[391950900,1761028238211,-2736.37993767,0.00024749,2]
[391950901,1761028238220,-2971.16250179,0.00025,2]
[391950902,1761028238232,-7324.52350221,0.00025,2]
[391950903,1761028238241,-250.0,0.00025909,2]
[391950904,1761028238250,-201.0,0.00026609,2]
[391950905,1761028238260,-790.76376068,0.00026658,2]
[391950906,1761028238270,-514.84070869,0.00026674,2]
[391950907,1761028238279,-340.62222601,0.00026678,2]
[391950908,1761028238289,-527.8,0.0002668,3]
[391950909,1761028238298,-263.9,0.0002668,3]
[391950910,1761028238307,-791.7,0.0002668,3]
[391950911,1761028238316,-2733.72,0.0002668,10]
[391950912,1761028238326,-2646.38635415,0.0002668,2]
[391950913,1761028238335,-303.84522534,0.0002668,2]
[391950914,1761028238344,-277694.21764347,0.0002669,2]
[391951263,1761028243277,-15026.15482527,0.0002669,2]
[391951267,1761028243289,-10833.62844875,0.0002669,2]
[391956119,1761028767005,-150.0,0.00025205,2]
[391956120,1761028767029,-150.0,0.00025677,2]
[391956121,1761028767044,-516.0,0.00025677,2]
[391956122,1761028767053,-84.0,0.00025805,2]
[391956129,1761028843757,456.079117,0.00013699,2]
[391956130,1761028843954,456.079117,0.00020187,2]
[391956131,1761028928108,150.0,0.00022432,2]
[391956132,1761028995118,150.0,0.00022217,2]
[391956133,1761029061749,150.0,0.00022245,2]
[391956134,1761029193232,150.0,0.00022256,2]
[391956169,1761029432092,-150.0,0.00025205,2]
[391956171,1761029432102,-542.0,0.00025295,2]
[391956173,1761029432111,-168.0,0.00025539,2]
[391956175,1761029432121,-168.0,0.00025719,7]
[391956178,1761029432131,-540.0,0.00025746,2]
[391956179,1761029432141,-168.0,0.00025759,2]
[391956181,1761029432150,-172.5,0.00025805,2]
[391956183,1761029432159,-168.0,0.00025836,2]
[391956185,1761029432169,-168.0,0.00025883,2]
[391956188,1761029432179,-1155.328164,0.00026,2]
[391956189,1761029432188,-168.0,0.00026085,2]
[391956191,1761029432197,-200.0,0.000261,2]
[391956193,1761029432207,-168.0,0.00026162,7]
[391956195,1761029432217,-168.0,0.00026219,7]
[391956197,1761029432227,-192.6439202,0.00026279,7]
[391956201,1761029432239,-221.3560798,0.00026279,7]
[391956204,1761029432248,-168.0,0.00026399,7]
[391956206,1761029432258,-800.0,0.000264,2]
[391956210,1761029432268,-195.0,0.00026405,2]
[391956214,1761029432277,-800.0,0.00026455,2]
[391956218,1761029432287,-156.152801,0.00026466,28]
[391956221,1761029432296,-454.54788259,0.00026475,2]
[391956224,1761029432307,-345.45211741,0.00026475,2]
[391956226,1761029432318,-435.30885899,0.00026499,2]
[391956228,1761029432330,-79.5318497,0.00026499,2]
[391956256,1761029432601,-1000.0,0.000265,2]
[391956258,1761029432611,-188.19366754,0.00026502,2]
[391956260,1761029432620,-1235.01681379,0.00026502,2]
[391956262,1761029432629,-168.0,0.00026505,2]
[391956264,1761029432638,-300.0,0.00026505,2]
[391956266,1761029432648,-800.0,0.00026507,2]
[391956267,1761029432657,-800.0,0.00026548,2]
[391956268,1761029432666,-800.0,0.00026554,2]
[391956269,1761029432675,-800.0,0.00026562,2]
[391956270,1761029432684,-503.05602523,0.00026573,2]
[391956271,1761029432692,-800.0,0.00026575,2]
[391956272,1761029432701,-800.0,0.00026577,2]
[391956273,1761029432714,-511.64,0.0002658,3]
[391956274,1761029432723,-255.82,0.0002658,3]
[391956275,1761029432732,-767.49,0.0002658,3]
[391956276,1761029432741,-2278.1,0.0002658,10]
[391956277,1761029432750,-1898.42,0.0002658,10]
[391956278,1761029432759,-11795.6807177,0.0002658,2]
[391956279,1761029432768,-314.21870979,0.0002658,2]
[391956280,1761029432776,-200.0,0.0002659,10]
[391956281,1761029432786,-200.0,0.0002659,10]
[391956282,1761029432795,-200.0,0.0002659,10]
[391956283,1761029432803,-200.0,0.0002659,10]
[391956284,1761029432812,-200.0,0.0002659,10]
[391956285,1761029432821,-200.0,0.0002659,10]
[391956286,1761029432830,-200.0,0.0002659,10]
[391956287,1761029432839,-200.0,0.0002659,10]
[391956288,1761029432847,-200.0,0.0002659,10]
[391956289,1761029432856,-205.112197,0.0002659,10]
[391956290,1761029432865,-166452.64029476,0.0002659,2]
[391956291,1761029432877,-203547.35970524,0.0002659,2]
[391956292,1761029432886,-155.26,0.00026602,2]
[391956293,1761029432895,-800.0,0.00026608,2]
[391956294,1761029432903,-837.98474692,0.00026616,2]
[391956295,1761029432913,-800.0,0.00026637,2]
[391956296,1761029432922,-800.0,0.00026638,2]
[391956297,1761029432931,-800.0,0.00026673,2]
[391956298,1761029432940,-456.079117,0.00026676,2]
[391956299,1761029432949,-1798.2927532,0.00026702,2]
[391956301,1761029432959,-33192.7219357,0.00026702,2]
[391956302,1761029432971,-414.0,0.00026711,2]
[391956303,1761029432980,-800.0,0.00026744,2]
[391956304,1761029432990,-413.0,0.00026758,7]
[391956305,1761029433001,-601.22791924,0.00026778,2]
[391956306,1761029433010,-1685.09724538,0.00026787,2]
[391956307,1761029433020,-800.0,0.00026788,2]
[391956308,1761029433030,-800.0,0.00026797,2]
[391956309,1761029433039,-800.0,0.00026798,2]
[391956310,1761029433049,-3903.1231368,0.00026813,2]
[391956311,1761029433058,-196.91946786,0.00026937,2]
[391956312,1761029433068,-8425.4862269,0.0002699,2]
[391956313,1761029433077,-209.47913986,0.0002699,2]
[391956314,1761029433087,-155.401,0.00026999,2]
[391956315,1761029433096,-151.0,0.00026999,2]
[391956316,1761029433106,-186617.48719749,0.00027,2]
[391956317,1761029433115,-19994.0,0.00027,2]
[391956318,1761029433124,-151.0,0.00027,7]
[391956319,1761029433133,-152.923304,0.00027,7]
[391956320,1761029433142,-161.295173,0.00027,7]
[391956321,1761029433151,-151.0,0.00027,7]
[391956322,1761029433160,-151.0,0.00027,7]
[391956323,1761029433169,-157.120058,0.00027,7]
[391956324,1761029433178,-156.152801,0.00027,2]
[391956325,1761029433188,-151.0,0.00027,7]
[391956326,1761029433197,-151.0,0.00027,7]
[391956327,1761029433206,-151.0,0.00027,7]
[391956328,1761029433215,-160.783093,0.00027,7]
[391956329,1761029433224,-151.0,0.00027,2]
[391956330,1761029433233,-267.76271467,0.00027,2]
[391956331,1761029433242,-151.0,0.00027,2]
[391956332,1761029433252,-151.0,0.00027,2]
[391956333,1761029433261,-151.0,0.00027,2]
[391956334,1761029433270,-151.0,0.00027,2]
[391956335,1761029433279,-151.0,0.00027,2]
[391956336,1761029433288,-198.479101,0.00027,2]
[391956337,1761029433297,-1000.0,0.00027,2]
[391956338,1761029433309,-8808.98,0.00027,7]
[391956339,1761029433318,-221.470581,0.00027,7]
[391956340,1761029433326,-151.0,0.00027,7]
[391956341,1761029433335,-151.0,0.00027,7]
[391956342,1761029433344,-151.0,0.00027,7]
[391956343,1761029433353,-151.0,0.00027,7]
[391956344,1761029433362,-151.0,0.00027,7]
[391956345,1761029433371,-151.0,0.00027,7]
[391956346,1761029433380,-151.0,0.00027,7]
[391956347,1761029433389,-151.0,0.00027,7]
[391956348,1761029433398,-153.541629,0.00027,7]
[391956349,1761029433407,-151.0,0.00027,7]
[391956350,1761029433416,-151.0,0.00027,7]
[391956351,1761029433425,-151.0,0.00027,7]
[391956352,1761029433434,-151.0,0.00027,7]
[391956353,1761029433443,-151.0,0.00027,7]
[391956354,1761029433452,-274.096148,0.00027,7]
[391956355,1761029433461,-151.0,0.00027,7]
[391956356,1761029433469,-151.0,0.00027,7]
[391956357,1761029433478,-151.0,0.00027,7]
[391956358,1761029433487,-151.0,0.00027,7]
[391956359,1761029433497,-226.489352,0.00027,7]
[391956360,1761029433507,-354.663833,0.00027,7]
[391956361,1761029433517,-354.663833,0.00027,7]
[391956362,1761029433527,-354.663833,0.00027,7]
[391956363,1761029433536,-354.663833,0.00027,7]
[391956364,1761029433545,-354.663833,0.00027,7]
[391956365,1761029433554,-354.663833,0.00027,7]
[391956366,1761029433563,-354.663833,0.00027,7]
[391956367,1761029433572,-354.663833,0.00027,7]
[391956368,1761029433581,-151.0,0.00027,7]
[391956369,1761029433590,-151.0,0.00027,7]
[391956370,1761029433599,-45225.04,0.00027,3]
[391956371,1761029433609,-151.0,0.00027,7]
[391956372,1761029433618,-182.731289,0.00027,7]
[391956373,1761029433627,-217.5,0.00027005,2]
[391956374,1761029433636,-160.0,0.00027016,2]
[391956375,1761029433645,-533.88981491,0.00027047,2]
[391956376,1761029433654,-151.0,0.00027054,2]
[391956377,1761029433663,-151.0,0.00027055,2]
[391956378,1761029433673,-392.7178133,0.00027068,2]
[391956379,1761029433682,-413.0,0.00027071,2]
[391956380,1761029433691,-198.0,0.00027109,2]
[391956381,1761029433702,-198.0,0.0002711,2]
[391956382,1761029433715,-200.0,0.00027198,2]
[391956383,1761029433724,-300.0,0.00027223,30]
[391956384,1761029433734,-300.0,0.00027223,30]
[391956385,1761029433743,-300.0,0.00027223,30]
[391956386,1761029433754,-403.05172659,0.00027247,2]
[391956387,1761029433763,-200.0,0.00027259,7]
[391956388,1761029433773,-166.7950135,0.00027288,2]
[391956389,1761029433782,-304.9237144,0.00027288,2]
[391956390,1761029433792,-603.4569063,0.00027288,2]
[391956391,1761029433801,-413.0,0.00027293,2]
[391956392,1761029433810,-160.0,0.00027306,2]
[391956393,1761029433820,-154.160189,0.00027397,30]
[391956394,1761029433829,-154.160189,0.00027397,30]
[391956395,1761029433839,-154.160189,0.00027397,30]
[391956396,1761029433848,-154.160189,0.00027397,30]
[391956397,1761029433857,-151.0,0.00027397,30]
[391956398,1761029433867,-152.012953,0.00027397,30]
[391956399,1761029433876,-1963.94,0.000274,2]
[391956400,1761029433885,-199.0,0.00027454,2]
[391956401,1761029433894,-186.158,0.00027479,16]
[391956402,1761029433903,-151.0,0.000275,30]
[391956403,1761029433913,-154.160189,0.000275,30]
[391956404,1761029433923,-154.160189,0.000275,30]
[391956405,1761029433932,-154.160189,0.000275,30]
[391956406,1761029433941,-154.160189,0.000275,30]
[391956407,1761029433951,-153.1283,0.000275,30]
[391956408,1761029433960,-153.648193,0.000275,30]
[391956409,1761029433970,-151.0,0.000275,15]
[391956410,1761029433979,-151.0,0.000275,15]
[391956411,1761029433988,-235.588398,0.000275,15]
[391956412,1761029433997,-152.898641,0.000275,30]
[391956413,1761029434007,-1000.0,0.000275,2]
[391956414,1761029434016,-150.0,0.000275,2]
[391956415,1761029434025,-199.0,0.00027544,2]
[391956416,1761029434034,-260.0,0.00027564,2]
[391956417,1761029434043,-553.64373807,0.00027595,2]
[391956418,1761029434053,-156.0,0.00027605,2]
[391956419,1761029434062,-403.05172659,0.000278,7]
[391956420,1761029434071,-1023.28,0.0002795,3]
[391956421,1761029434080,-511.64,0.0002795,3]
[391956422,1761029434089,-158.0900427,0.00027973,30]
[391956423,1761029434098,-589.8769586,0.00027973,30]
[391956424,1761029434108,-167.396397,0.00027973,30]
[391956425,1761029434117,-589.8769586,0.00027973,30]
[391956426,1761029434127,-199.0,0.00027986,2]
[391956427,1761029434136,-152.399999,0.00028,2]
[391956428,1761029434145,-180.0,0.00028,2]
[391956429,1761029434154,-354.10058711,0.0002803,2]
[391956430,1761029434163,-360.0,0.00028112,2]
[391956431,1761029434173,-712.99896196,0.00028143,2]
[391956432,1761029434182,-762.0,0.000284,2]
[391956433,1761029434191,-8808.98,0.000284,7]
[391956434,1761029434200,-199.0,0.00028468,2]
[391956435,1761029434210,-199.0,0.00028489,7]
[391956436,1761029434219,-150.0,0.000285,2]
[391956437,1761029434228,-1685.09724538,0.00028606,2]
[391956438,1761029434237,-354.663833,0.00028616,30]
[391956439,1761029434247,-354.663833,0.00028616,30]
[391956440,1761029434257,-354.663833,0.00028616,30]
[391956441,1761029434266,-354.663833,0.00028616,30]
[391956442,1761029434276,-151.0,0.00028616,30]
[391956443,1761029434285,-156.152801,0.00028644,28]
[391956444,1761029434294,-151.100433,0.00028644,28]
[391956445,1761029434304,-460.0,0.00028659,2]
[391956446,1761029434313,-420.0,0.00028669,2]
[391956447,1761029434323,-156.152801,0.00028681,2]
[391956448,1761029434332,-151.100433,0.00028681,2]
[391956449,1761029434341,-151.0,0.00028681,30]
[391956450,1761029434350,-198.05192,0.00028681,30]
[391956451,1761029434359,-151.0,0.0002869,30]
[391956452,1761029434368,-151.0,0.0002869,30]
[391956453,1761029434377,-151.0,0.0002869,30]
[391956454,1761029434386,-151.0,0.0002869,30]
[391956455,1761029434395,-500.0,0.0002871,7]
[391956456,1761029434404,-1963.94,0.000288,2]
[391956457,1761029434413,-500.08,0.0002899,2]
[391956458,1761029434422,-500.0,0.0002899,2]
[391956459,1761029434431,-192.6272459,0.00029123,30]
[391956460,1761029434440,-155.1954585,0.00029123,30]
[391956461,1761029434449,-190.1756091,0.00029123,30]
[391956462,1761029434458,-153.0,0.00029123,30]
[391956463,1761029434467,-190.1756091,0.00029123,30]
[391956464,1761029434476,-550.4444144,0.00029123,30]
[391956465,1761029434486,-153.0,0.00029123,30]
[391956466,1761029434495,-153.0,0.00029123,30]
[391956467,1761029434505,-500.0,0.0002913,5]
[391956468,1761029434514,-178.022588,0.0002913,30]
[391956469,1761029434524,-500.0,0.0002913,5]
[391956470,1761029434533,-500.0,0.0002913,20]
[391956471,1761029434542,-500.0,0.0002913,5]
[391956472,1761029434551,-500.0,0.0002913,20]
[391956473,1761029434560,-500.0,0.0002913,5]
[391956474,1761029434570,-500.0,0.0002913,5]
[391956475,1761029434579,-500.0,0.0002913,20]
[391956476,1761029434588,-560.0,0.00029207,2]
[391956477,1761029434597,-188.19366753,0.00029451,2]
[391956478,1761029434606,-800.0,0.00029575,2]
[391956479,1761029434615,-155.0,0.00029699,2]
[391956480,1761029434625,-1235.01681378,0.00029701,2]
[391956481,1761029434634,-660.0,0.00029755,2]
[391956482,1761029434643,-403.05172659,0.0002995,30]
[391956483,1761029434652,-156.152801,0.0003,10]
[391956484,1761029434661,-1000.0,0.0003,14]
[391956485,1761029434670,-151.0,0.0003,14]
[391956486,1761029434680,-7406.2973612,0.00030091,2]
[391956487,1761029434689,-151.0,0.00030091,30]
[391956488,1761029434698,-154.160189,0.00030091,30]
[391956489,1761029434710,-154.160189,0.00030091,30]
[391956490,1761029434719,-154.160189,0.00030091,30]
[391956491,1761029434729,-154.160189,0.00030091,30]
[391956492,1761029434738,-151.0,0.00030091,15]
[391956493,1761029434747,-151.0,0.00030091,15]
[391956494,1761029434758,-11306.25,0.000301,5]
[391956495,1761029434767,-500.0,0.00030137,2]
[391956496,1761029434776,-402.35799437,0.00030137,2]
[391956497,1761029434787,-500.0,0.00030137,2]
[391956498,1761029434797,-870.9044906,0.00030216,2]
[391956499,1761029434807,-1685.09724538,0.0003029,2]
[391956500,1761029434816,-8808.98,0.000303,7]
[391956501,1761029434825,-1963.94,0.000303,2]
[391956502,1761029434836,-151.0,0.000303,30]
[391956503,1761029434845,-354.663833,0.000303,30]
[391956504,1761029434855,-354.663833,0.000303,30]
[391956505,1761029434865,-354.663833,0.000303,30]
[391956506,1761029434874,-354.663833,0.000303,30]
[391956507,1761029434884,-760.0,0.00030303,2]
[391956508,1761029434893,-4205.0,0.00030358,2]
[391956509,1761029434903,-632.0,0.00030358,2]
[391956510,1761029434912,-2164.0,0.00030358,2]
[391956511,1761029434922,-156.152801,0.00030361,2]
[391956512,1761029434931,-151.100433,0.00030361,2]
[391956513,1761029434942,-160.0,0.00030415,3]
[391956514,1761029434952,-151.0,0.000306,14]
[391956515,1761029434961,-155.94,0.0003076,15]
[391956516,1761029434971,-155.95,0.0003076,15]
[391956517,1761029434980,-155.95,0.0003076,15]
[391956518,1761029434990,-155.98,0.00030763,15]
[391956519,1761029435000,-155.95,0.00030763,15]
[391956520,1761029435009,-155.95,0.00030763,15]
[391956521,1761029435019,-156.152801,0.00030822,28]
[391956522,1761029435028,-151.100433,0.00030822,28]
[391956523,1761029435037,-1652.5683163,0.00030847,2]
[391956524,1761029435045,-860.0,0.00030851,2]
[391956525,1761029435054,-155.96,0.0003086,15]
[391956526,1761029435062,-151.0,0.0003086,30]
[391956527,1761029435070,-151.0,0.0003086,30]
[391956528,1761029435078,-155.98,0.00030863,15]
[391956529,1761029435086,-156.152801,0.00030918,10]
[391956530,1761029435094,-155.98,0.00030963,15]
[391956531,1761029435103,-194.3250584,0.00030975,2]
[391956532,1761029435111,-1685.09724538,0.0003099,2]
[391956533,1761029435119,-178.12267978,0.00031,120]
[391956534,1761029435128,-2598.66671596,0.00031,120]
[391956535,1761029435136,-725.07104009,0.00031,120]
[391956536,1761029435144,-736.46690277,0.00031,120]
[391956537,1761029435153,-207.46740396,0.00031,120]
[391956538,1761029435160,-35399.08474419,0.00031,2]
[391956539,1761029435167,-197.67694813,0.00031,120]
[391956540,1761029435176,-181.09763267,0.00031,120]
[391956541,1761029435186,-232.82175897,0.00031,120]
[391956542,1761029435195,-171.76318768,0.00031,120]
[391956543,1761029435205,-169.93573637,0.00031,120]
[391956544,1761029435214,-152.655472,0.00031,30]
[391956545,1761029435223,-154.160189,0.00031,30]
[391956546,1761029435232,-154.160189,0.00031,30]
[391956547,1761029435241,-154.160189,0.00031,30]
[391956548,1761029435252,-154.160189,0.00031,30]
[391956549,1761029435261,-151.0,0.00031,15]
[391956550,1761029435271,-151.0,0.00031,15]
[391956551,1761029435280,-189.82131816,0.00031,120]
[391956552,1761029435289,-151.0,0.00031,30]
[391956553,1761029435298,-151.0,0.00031,30]
[391956554,1761029435308,-354.663833,0.00031,30]
[391956555,1761029435317,-354.663833,0.00031,30]
[391956556,1761029435327,-354.663833,0.00031,30]
[391956557,1761029435336,-354.66383253,0.00031,30]
[391956558,1761029435345,-587.0,0.00031011,2]
[391956559,1761029435355,-155.98290778,0.00031063,15]
[391956560,1761029435364,-151.0,0.000312,19]
[391956561,1761029435373,-158.46756255,0.00031342,30]
[391956562,1761029435382,-155.3766081,0.00031397,30]
[391956563,1761029435391,-960.0,0.00031399,2]
[391956564,1761029435400,-353.37090647,0.00031429,2]
[391956565,1761029435409,-150.0,0.00031439,2]
[391956566,1761029435418,-150.0,0.00031439,2]
[391956567,1761029435427,-503.82281992,0.00031526,7]
[391956568,1761029435436,-1963.94,0.000316,2]
[391956569,1761029435446,-5642.0,0.00031605,2]
[391956570,1761029435455,-1400.0,0.00031658,7]
[391956571,1761029435464,-11306.25,0.000317,7]
[391956572,1761029435473,-5000.0,0.00031712,3]
[391956573,1761029435482,-158.46756255,0.00031781,30]
[391956574,1761029435491,-158.46756255,0.00031781,30]
[391956575,1761029435500,-151.0,0.000318,12]
[391956576,1761029435509,-8808.98,0.000318,7]
[391956577,1761029435518,-156.152801,0.00031836,10]
[391956578,1761029435527,-151.100433,0.00031836,10]
[391956579,1761029435536,-1685.09724538,0.0003189,2]
[391956580,1761029435545,-178.12267978,0.000319,120]
[391956581,1761029435555,-2598.66671596,0.000319,120]
[391956582,1761029435564,-725.07104009,0.000319,120]
[391956583,1761029435572,-736.46690277,0.000319,120]
[391956584,1761029435581,-207.46740396,0.000319,120]
[391956585,1761029435591,-197.67694813,0.000319,120]
[391956586,1761029435600,-181.09763267,0.000319,120]
[391956587,1761029435609,-232.82175897,0.000319,120]
[391956588,1761029435618,-403.05172659,0.000319,120]
[391956589,1761029435627,-1060.0,0.00031947,2]
[391956590,1761029435636,-1685.09724538,0.0003199,2]
[391956591,1761029435646,-2007.58,0.00032,32]
[391956592,1761029435656,-321.65264,0.00032,120]
[391956593,1761029435666,-316.0,0.00032,10]
[391956594,1761029435676,-14043.52,0.00032,30]
[391956595,1761029435685,-500.0,0.00032,120]
[391956596,1761029435695,-200.0,0.00032,14]
[391956597,1761029435706,-154.160189,0.00032,30]